bitfinex-derivatives/quotes_BTCF0:USTF0_20230901
["timestamp","ask_amount","ask_price","bid_price","bid_amount"]
[1693578895169,0.00258069,25834.0,25833.0,1.25484651]
[1693578895471,0.0306903,25843.0,25834.0,1.5857]
[1693578895675,0.0173998,25843.0,25839.0,0.6193]
[1693578895873,0.6193,25844.0,25840.0,0.05654838]
[1693578896181,0.6193,25841.0,25837.0,0.6193]
[1693578896469,0.6193,25841.0,25838.0,0.11123745]
[1693578896665,0.67311745,25841.0,25837.0,0.6193]
[1693578896874,0.69051725,25841.0,25838.0,0.05654838]
[1693578897069,0.69051725,25841.0,25837.0,0.6393]
[1693578897258,0.6193,25839.0,25836.0,0.1514]
[1693578897463,0.6393,25839.0,25836.0,0.1514]
[1693578897865,0.6566998,25839.0,25836.0,0.1514]
[1693578898165,0.05381745,25838.0,25837.0,0.05654838]
[1693578898369,0.6566998,25839.0,25837.0,0.05654838]
[1693578898671,0.6366998,25839.0,25838.0,0.05654838]
[1693578898864,0.6366998,25839.0,25838.0,0.11123745]
[1693578899059,0.6366998,25839.0,25838.0,0.05654838]
[1693578899367,0.6566998,25839.0,25836.0,0.1514]
[1693578899569,0.6566998,25839.0,25837.0,0.05654838]
[1693578899770,0.6566998,25839.0,25836.0,0.1514]
[1693578899771,0.6366998,25839.0,25836.0,0.1514]
[1693578899972,0.6366998,25839.0,25837.0,0.11123745]
[1693578900169,0.6366998,25839.0,25836.0,0.1514]
[1693578900359,0.6936198,25839.0,25836.0,0.1514]
[1693578900566,0.62317,25837.0,25836.0,0.1514]
[1693578900764,0.6393,25837.0,25836.0,0.20794838]
[1693578900966,0.6193,25839.0,25836.0,0.20794838]
[1693578901164,0.6566998,25839.0,25837.0,0.05654838]
[1693578901367,0.6566998,25839.0,25836.0,0.73219407]
[1693578901668,0.6376998,25839.0,25837.0,0.68999643]
[1693578901864,0.6376998,25839.0,25837.0,0.57875898]
[1693578902065,0.6386998,25839.0,25837.0,0.57875898]
[1693578902270,0.71251725,25839.0,25837.0,0.57875898]
[1693578902474,0.71251725,25839.0,25837.0,0.63530736]
[1693578902667,0.71003745,25838.0,25836.0,0.074]
[1693578902870,0.0393998,25839.0,25836.0,0.074]
[1693578902871,0.62317,25837.0,25836.0,0.074]
[1693578903260,0.6393,25837.0,25836.0,0.074]
[1693578903569,0.6366998,25837.0,25836.0,0.18523745]
[1693578903867,0.6405698,25837.0,25836.0,0.13054838]
[1693578904169,0.6405698,25837.0,25836.0,0.074]
[1693578904363,0.0173998,25837.0,25836.0,0.037]
[1693578904571,0.0183998,25837.0,25836.0,0.074]
[1693578904768,0.0183998,25837.0,25836.0,0.18523745]
[1693578905069,0.001,25837.0,25836.0,0.78773042]
[1693578905263,0.001,25837.0,25836.0,1.40703042]
[1693578905868,0.00058051,25842.0,25836.0,1.40703042]
[1693578905869,0.00058051,25842.0,25837.0,0.6193]
[1693578906072,0.001,25839.0,25837.0,0.057]
[1693578906269,0.001,25839.0,25838.0,0.6193]
[1693578906575,0.001,25839.0,25838.0,1.33440352]
[1693578906965,0.0183998,25839.0,25838.0,0.69510352]
[1693578907165,0.001,25839.0,25838.0,0.69510352]
[1693578907370,0.00058051,25842.0,25838.0,1.31440352]
[1693578907569,0.02058051,25842.0,25839.0,0.73053745]
[1693578907777,0.01798031,25842.0,25839.0,0.6193]
[1693578907968,0.01798031,25842.0,25840.0,0.6905345]
[1693578908270,0.01798031,25842.0,25840.0,0.57929705]
[1693578908471,0.00058051,25842.0,25840.0,0.57929705]
[1693578908774,0.00058051,25842.0,25841.0,0.11123745]
[1693578908973,0.01798031,25842.0,25841.0,0.11123745]
[1693578909174,0.00058051,25842.0,25841.0,0.69373771]
[1693578910075,0.01798031,25842.0,25841.0,0.69373771]
[1693578910269,0.00058051,25842.0,25841.0,0.69373771]
[1693578911173,0.00058051,25842.0,25841.0,0.58250026]
[1693578911480,0.65288051,25842.0,25837.0,0.036]
[1693578911777,0.6193,25838.0,25837.0,0.036]
[1693578911969,0.6193,25838.0,25837.0,0.14723745]
[1693578912168,0.6366998,25838.0,25837.0,0.14723745]
[1693578912580,0.63288051,25842.0,25837.0,0.78653745]
[1693578912763,0.63288051,25842.0,25838.0,0.023]
[1693578912968,0.63388051,25842.0,25839.0,0.11123745]
[1693578913168,0.63388051,25842.0,25840.0,0.57682753]
[1693578913376,0.65128031,25842.0,25840.0,0.57682753]
[1693578913772,0.65128031,25842.0,25841.0,0.11123745]
[1693578914075,0.63928031,25842.0,25841.0,0.11123745]
[1693578915680,0.01998031,25842.0,25841.0,1.30920694]
[1693578916867,0.00258051,25842.0,25841.0,1.30920694]
[1693578917075,0.00158051,25842.0,25841.0,1.30920694]
[1693578918376,0.00158051,25842.0,25841.0,1.32920694]
[1693578918574,0.6193,25851.0,25842.0,1.2]
[1693578918768,0.6193,25849.0,25842.0,0.13574115]
[1693578918972,0.6393,25849.0,25845.0,0.6193]
[1693578919174,0.6393,25849.0,25846.0,0.11123745]
[1693578919375,0.6393,25849.0,25846.0,0.58133623]
[1693578919573,0.6393,25849.0,25847.0,0.11123745]
[1693578919773,0.6393,25849.0,25846.0,0.58133623]
[1693578919972,0.00387,25847.0,25845.0,0.6193]
[1693578920173,0.6393,25847.0,25843.0,0.7842]
[1693578920586,0.6393,25847.0,25844.0,0.6883436]
[1693578920777,0.6393,25847.0,25844.0,0.57710615]
[1693578921175,0.6366998,25847.0,25845.0,0.11123745]
[1693578921382,0.72743725,25847.0,25844.0,0.57710615]
[1693578921583,0.72743725,25847.0,25843.0,0.7842]
[1693578921584,0.6566998,25847.0,25843.0,0.7842]
[1693578921773,0.6566998,25847.0,25844.0,0.009]
[1693578921970,0.09073745,25846.0,25844.0,0.009]
[1693578922174,0.6193,25845.0,25844.0,0.009]
[1693578922377,0.72743725,25845.0,25844.0,0.009]
[1693578922673,0.74743725,25845.0,25844.0,0.009]
[1693578923971,0.74743725,25845.0,25843.0,0.023]
[1693578924175,0.71390745,25844.0,25843.0,0.023]
[1693578924375,0.75130725,25844.0,25843.0,0.023]
[1693578924679,0.75130725,25844.0,25839.0,0.2126117]
[1693578924680,0.00387,25843.0,25839.0,0.2126117]
[1693578924874,0.003,25845.0,25840.0,0.05654838]
[1693578924875,0.65622,25842.0,25840.0,0.05654838]
[1693578925079,0.6193,25842.0,25838.0,0.89334115]
[1693578925380,0.6193,25839.0,25837.0,0.14704765]
[1693578925579,0.6193,25839.0,25836.0,0.11574115]
[1693578925882,0.6193,25839.0,25836.0,0.71955403]
[1693578926177,0.774,25846.0,25836.0,0.71955403]
[1693578926178,0.6193,25841.0,25838.0,0.00058047]
[1693578926379,0.6393,25841.0,25838.0,0.00058047]
[1693578926578,0.6566998,25841.0,25839.0,0.57858344]
[1693578926878,0.6366998,25841.0,25840.0,0.05654838]
[1693578927079,0.0173998,25841.0,25840.0,0.05654838]
[1693578927283,0.0173998,25841.0,25840.0,0.11123745]
[1693578927677,0.0173998,25841.0,25840.0,0.05654838]
[1693578927985,0.6203,25842.0,25840.0,0.11123745]
[1693578928178,0.6203,25842.0,25838.0,0.64088047]
[1693578928179,0.003,25841.0,25838.0,0.64088047]
[1693578928381,0.6193,25840.0,25838.0,0.02158047]
[1693578928780,0.09073745,25839.0,25838.0,0.00058047]
[1693578929790,0.0173998,25839.0,25838.0,0.61988047]
[1693578930084,0.003,25841.0,25838.0,1.33515223]
[1693578930282,0.001,25841.0,25840.0,0.6193]
[1693578930486,0.001,25841.0,25840.0,0.75504115]
[1693578930786,0.001,25841.0,25840.0,1.44929126]
[1693578931286,0.00058049,25843.0,25840.0,1.44929126]
[1693578931483,0.00058049,25843.0,25842.0,0.6193]
[1693578931679,0.01798029,25843.0,25841.0,0.6193]
[1693578931878,0.01798029,25843.0,25842.0,0.69126301]
[1693578933177,0.01798029,25843.0,25842.0,0.69926301]
[1693578933384,0.00058049,25843.0,25842.0,0.69926301]
[1693578933584,0.00058049,25843.0,25842.0,0.69126301]
[1693578933774,0.00058049,25843.0,25842.0,0.69926301]
[1693578934179,0.71120029,25843.0,25842.0,0.01]
[1693578934593,0.74761794,25843.0,25842.0,0.01]
[1693578935178,0.74761794,25843.0,25838.0,0.03186455]
[1693578935384,0.6193,25839.0,25838.0,0.03186455]
[1693578935581,0.65622,25839.0,25838.0,0.03186455]
[1693578935887,0.67622,25839.0,25838.0,0.03186455]
[1693578936086,0.6193,25841.0,25838.0,0.143102]
[1693578936290,0.64728029,25843.0,25839.0,0.6193]
[1693578936484,0.64728029,25843.0,25840.0,0.05654838]
[1693578936686,0.64728029,25843.0,25841.0,0.05468907]
[1693578936878,0.62728029,25843.0,25840.0,0.57888358]
[1693578937078,0.00798029,25843.0,25841.0,0.67584838]
[1693578937284,0.00798029,25843.0,25842.0,0.63754271]
[1693578937584,0.02698029,25843.0,25842.0,0.69609109]
[1693578937986,0.02698029,25843.0,25842.0,0.64140202]
[1693578938388,0.02398029,25843.0,25842.0,0.63940202]
[1693578938688,0.68020029,25843.0,25841.0,0.001]
[1693578938886,0.6193,25842.0,25841.0,0.001]
[1693578939082,0.71743725,25842.0,25841.0,0.001]
[1693578939284,0.65622,25842.0,25841.0,0.001]
[1693578939587,0.73743725,25842.0,25838.0,0.67016455]
[1693578939888,0.03692,25841.0,25838.0,0.67016455]
[1693578940085,0.6466998,25842.0,25839.0,0.05468907]
[1693578940292,0.6466998,25842.0,25839.0,0.57673876]
[1693578940491,0.6266998,25842.0,25840.0,0.05654838]
[1693578940689,0.6266998,25842.0,25841.0,0.05468907]
[1693578940883,0.6266998,25842.0,25839.0,0.59673876]
[1693578941086,0.6266998,25842.0,25838.0,0.67016455]
[1693578941383,0.6426998,25842.0,25841.0,0.001]
[1693578941584,0.75343725,25842.0,25841.0,0.002]
[1693578941785,0.73343725,25842.0,25841.0,0.002]
[1693578942184,0.71743725,25842.0,25840.0,0.05654838]
[1693578942386,0.6266998,25842.0,25840.0,0.05468907]
[1693578942687,0.6266998,25842.0,25839.0,0.015]
[1693578942884,0.6346998,25842.0,25841.0,0.001]
[1693578943081,0.74143725,25842.0,25841.0,0.002]
[1693578943387,0.6876198,25842.0,25841.0,0.002]
[1693578943587,0.6426998,25842.0,25841.0,0.67684838]
[1693578943789,0.0293998,25842.0,25841.0,1.25805945]
[1693578943993,0.022,25842.0,25841.0,1.33274852]
[1693578944496,0.19539158,25849.0,25842.0,0.11123745]
[1693578944683,0.00387,25849.0,25846.0,0.6193]
[1693578945191,0.0112698,25849.0,25847.0,0.11123745]
[1693578945394,0.0112698,25849.0,25846.0,0.6193]
[1693578945592,0.0112698,25849.0,25847.0,0.11123745]
[1693578945987,0.0073998,25849.0,25847.0,0.11123745]
[1693578946291,0.0073998,25849.0,25848.0,0.69303434]
[1693578946493,0.002,25849.0,25848.0,0.63834527]
[1693578946691,0.00587,25849.0,25848.0,0.05654838]
[1693578947396,0.74330725,25849.0,25847.0,0.002]
[1693578947590,0.62317,25848.0,25847.0,0.002]
[1693578947795,0.71390745,25848.0,25847.0,0.003]
[1693578947987,0.73390745,25848.0,25847.0,0.003]
[1693578948590,0.74130725,25848.0,25847.0,0.003]
[1693578948789,0.00387,25847.0,25842.0,0.03090922]
[1693578949092,0.6193,25844.0,25842.0,0.02]
[1693578949295,0.6193,25847.0,25843.0,0.73053745]
[1693578949495,0.002,25848.0,25847.0,0.002]
[1693578949700,0.002,25848.0,25847.0,0.05854838]
[1693578949891,0.05892,25848.0,25847.0,0.002]
[1693578950289,0.11273745,25848.0,25847.0,0.002]
[1693578950799,0.10013725,25848.0,25847.0,0.002]
[1693578951293,0.10013725,25848.0,25847.0,0.003]
[1693578951482,0.10413725,25848.0,25847.0,0.006]
[1693578951995,0.74730725,25848.0,25847.0,0.006]
[1693578952491,0.72730725,25848.0,25847.0,0.005]
[1693578952696,0.12800725,25848.0,25847.0,0.005]
[1693578952896,0.10800725,25848.0,25847.0,0.005]
[1693578953488,0.0172698,25848.0,25847.0,0.06154838]
[1693578954190,0.07108725,25848.0,25847.0,0.004]
[1693578954392,0.10800725,25848.0,25847.0,0.004]
[1693578954787,0.74730725,25848.0,25847.0,0.004]
[1693578955492,0.93882883,25848.0,25847.0,0.004]
[1693578958101,0.93882883,25848.0,25845.0,0.00058033]
[1693578958102,0.6193,25846.0,25845.0,0.00058033]
[1693578958296,1.45102518,25846.0,25838.0,0.03128408]
[1693578958495,0.6193,25840.0,25837.0,0.11574115]
[1693578958696,0.6193,25840.0,25837.0,0.19043022]
[1693578958911,0.6193,25843.0,25839.0,0.6193]
[1693578959102,0.81172518,25846.0,25842.0,0.6193]
[1693578959401,0.19842518,25848.0,25845.0,0.6193]
[1693578959706,0.006,25848.0,25847.0,0.6193]
[1693578960000,0.006,25848.0,25847.0,0.64499117]
[1693578960188,0.007,25848.0,25847.0,0.75822862]
[1693578960389,0.19242518,25852.0,25847.0,0.75822862]
[1693578960697,0.19242518,25854.0,25851.0,0.6193]
[1693578960900,0.19242518,25854.0,25853.0,0.6193]
[1693578961296,0.19242518,25854.0,25853.0,0.73053745]
[1693578961499,0.19242518,25855.0,25853.0,0.75053745]
[1693578961804,0.19242518,25855.0,25854.0,0.73053745]
[1693578962108,0.19242518,25856.0,25854.0,0.75053745]
[1693578962403,0.19242518,25856.0,25855.0,0.11123745]
[1693578962702,0.19242518,25856.0,25855.0,0.05654838]
[1693578962898,0.00681947,25856.0,25854.0,0.6193]
[1693578963089,0.00681947,25856.0,25854.0,0.6393]
[1693578963294,0.19242518,25857.0,25854.0,0.6393]
[1693578963500,0.19242518,25857.0,25855.0,0.05654838]
[1693578963901,0.19242518,25857.0,25856.0,0.05654838]
[1693578964102,0.2530621,25857.0,25854.0,0.6193]
[1693578964300,0.00681947,25857.0,25854.0,0.6393]
[1693578964498,0.001,25856.0,25855.0,0.11123745]
[1693578964692,0.001,25856.0,25855.0,1.2172029]
[1693578964892,0.00110015,25858.0,25856.0,0.05654838]
[1693578965103,0.00110015,25858.0,25857.0,0.6193]
[1693578965396,0.00110015,25858.0,25857.0,0.6393]
[1693578965488,0.00110015,25858.0,25857.0,0.75053745]
[1693578965693,0.00110015,25858.0,25857.0,1.30944941]
[1693578966195,0.00810015,25858.0,25857.0,1.30944941]
[1693578968505,0.00810015,25858.0,25857.0,1.32944941]
[1693578969708,0.00810015,25858.0,25857.0,1.33144941]
[1693578971010,0.00810015,25858.0,25857.0,1.32944941]
[1693578972401,0.00810015,25858.0,25857.0,1.30944941]
[1693578972806,0.00810015,25858.0,25857.0,1.32944941]
[1693578973204,0.00810015,25858.0,25857.0,1.33044941]
[1693578974000,0.00110015,25858.0,25857.0,1.34244941]
[1693578974205,0.00058015,25858.0,25857.0,1.35144941]
[1693578976209,0.00058015,25858.0,25857.0,1.36444941]
[1693578977012,0.00739962,25858.0,25857.0,1.34444941]
[1693578977809,0.00058015,25858.0,25857.0,1.34444941]
[1693578978009,0.00739962,25858.0,25857.0,1.35744941]
[1693578978210,0.00058015,25858.0,25857.0,1.35744941]
[1693578979117,0.00739962,25858.0,25857.0,1.35744941]
[1693578979612,0.00058015,25858.0,25857.0,0.62691196]
[1693578979812,0.02058015,25858.0,25857.0,0.048]
[1693578980711,0.1113176,25858.0,25857.0,0.048]
[1693578980905,0.11813707,25858.0,25857.0,0.048]
[1693578981115,0.06431962,25858.0,25857.0,0.10454838]
[1693578981418,0.11813707,25858.0,25857.0,0.048]
[1693578982216,0.73743707,25858.0,25857.0,0.048]
[1693578982718,0.73743707,25858.0,25857.0,0.023]
[1693578983017,0.73743707,25858.0,25857.0,0.001]
[1693578983218,0.74543707,25858.0,25857.0,0.001]
[1693578983609,0.09073745,25857.0,25852.0,0.00058016]
[1693578983811,0.6193,25855.0,25852.0,0.00058016]
[1693578984015,0.6393,25855.0,25852.0,0.00058016]
[1693578984314,0.00387,25853.0,25852.0,0.00058016]
[1693578984510,0.02,25853.0,25852.0,0.00058016]
[1693578984710,0.11655692,25853.0,25852.0,0.00058016]
[1693578986416,0.12455692,25853.0,25852.0,0.00358016]
[1693578987310,0.12655692,25853.0,25852.0,0.00658016]
[1693578988020,0.08763692,25853.0,25852.0,0.00358016]
[1693578988218,0.03581947,25853.0,25852.0,0.00658016]
[1693578988612,0.01581947,25853.0,25852.0,0.73711761]
[1693578989727,0.00781947,25853.0,25852.0,0.73411761]
[1693578989927,0.01581947,25853.0,25852.0,0.73711761]
[1693578990117,0.01581947,25853.0,25852.0,1.32060772]
[1693578990316,0.01581947,25853.0,25852.0,1.93990772]
[1693578990517,0.01,25853.0,25852.0,1.93990772]
[1693578991014,0.01,25853.0,25852.0,1.95990772]
[1693578992032,0.01,25853.0,25852.0,1.93990772]
[1693578992525,0.01,25853.0,25852.0,1.95990772]
[1693578993616,0.01,25853.0,25852.0,1.93990772]
[1693578994117,0.01,25853.0,25852.0,1.95990772]
[1693578995121,0.00058015,25858.0,25852.0,1.95990772]
[1693578995418,0.00639962,25858.0,25857.0,0.6193]
[1693578995617,0.00639962,25858.0,25857.0,0.73053745]
[1693578996429,0.00058015,25858.0,25857.0,0.73053745]
[1693578996627,0.00639962,25858.0,25857.0,0.73053745]
[1693578997426,0.00639962,25858.0,25857.0,0.73253745]
[1693578997630,0.00058015,25858.0,25857.0,0.73253745]
[1693578997826,0.00639962,25858.0,25857.0,0.73453745]
[1693579000128,0.02639962,25858.0,25857.0,0.67984838]
[1693579000529,0.02639962,25858.0,25857.0,0.73453745]
[1693579000724,0.02639962,25858.0,25857.0,0.67984838]
[1693579001126,0.02639962,25858.0,25857.0,0.73453745]
[1693579001518,0.02639962,25858.0,25857.0,0.67984838]
[1693579001722,0.02639962,25858.0,25857.0,0.73453745]
[1693579003128,0.02639962,25858.0,25857.0,0.71132052]
[1693579003529,0.02639962,25858.0,25857.0,0.76600959]
[1693579004031,0.02639962,25858.0,25857.0,0.71132052]
[1693579004330,0.02639962,25858.0,25857.0,0.65477214]
[1693579004530,0.11713707,25858.0,25857.0,0.65477214]
[1693579005233,0.06331962,25858.0,25857.0,0.65477214]
[1693579005436,0.02639962,25858.0,25857.0,0.65477214]
[1693579005933,0.02639962,25858.0,25857.0,0.76600959]
[1693579006527,0.00639962,25858.0,25857.0,0.76600959]
[1693579007037,0.04331962,25858.0,25857.0,0.71132052]
[1693579007228,0.00639962,25858.0,25857.0,1.34257118]
[1693579007430,0.00639962,25858.0,25857.0,1.28788211]
[1693579007631,0.00058015,25858.0,25857.0,1.28788211]
[1693579007934,0.00058015,25858.0,25857.0,1.36257118]
[1693579010224,0.04331962,25858.0,25857.0,1.2860228]
[1693579010429,0.00639962,25858.0,25857.0,1.23133373]
[1693579010921,0.00639962,25858.0,25857.0,1.34257118]
[1693579011733,0.00058015,25858.0,25857.0,1.34257118]
[1693579012037,0.00058015,25858.0,25857.0,1.36257118]
[1693579013028,0.00058015,25858.0,25857.0,1.34257118]
[1693579013235,0.00058015,25858.0,25857.0,1.36257118]
[1693579013636,0.00058015,25858.0,25857.0,1.28788211]
[1693579014036,0.00639962,25858.0,25857.0,1.28788211]
[1693579014339,0.00058015,25858.0,25857.0,1.28788211]
[1693579014943,0.0743976,25858.0,25857.0,0.65477214]
[1693579015131,0.11713707,25858.0,25857.0,0.65477214]
[1693579015447,0.06331962,25858.0,25857.0,0.65477214]
[1693579015738,0.02639962,25858.0,25857.0,0.71132052]
[1693579016039,0.02639962,25858.0,25857.0,0.76600959]
[1693579016040,0.00639962,25858.0,25857.0,0.76600959]
[1693579016435,0.00058015,25858.0,25857.0,1.34888938]
[1693579017336,0.00639962,25858.0,25857.0,1.34888938]
[1693579017532,0.00639962,25858.0,25857.0,1.14748938]
[1693579018335,0.00058015,25858.0,25857.0,1.14748938]
[1693579018536,0.00058015,25858.0,25857.0,1.16748938]
[1693579019142,0.00058015,25858.0,25857.0,1.14748938]
[1693579019645,0.00058015,25858.0,25857.0,1.16748938]
[1693579021037,0.00058015,25858.0,25857.0,1.40932783]
[1693579021240,0.68603021,25865.0,25857.0,1.40932783]
[1693579021241,0.23369589,25868.0,25859.0,0.7179]
[1693579021540,0.00387,25868.0,25867.0,0.8358]
[1693579021842,0.00581947,25868.0,25867.0,0.94703745]
[1693579022837,0.02581947,25868.0,25867.0,0.4179]
[1693579023240,0.02581947,25868.0,25867.0,0.47258907]
[1693579023546,0.02581947,25868.0,25867.0,0.47444838]
[1693579023746,0.06273947,25868.0,25867.0,0.4179]
[1693579024045,0.06273947,25868.0,25867.0,0.4209]
[1693579025038,0.09655692,25868.0,25867.0,0.4209]
[1693579025742,0.02581947,25868.0,25867.0,0.4209]
[1693579026447,0.02581947,25868.0,25867.0,0.53213745]
[1693579026640,0.00581947,25868.0,25867.0,0.47744838]
[1693579026849,0.00581947,25868.0,25867.0,0.53213745]
[1693579027042,0.154,25872.0,25867.0,1.53279822]
[1693579027239,0.17981947,25872.0,25871.0,0.4179]
[1693579027437,0.17981947,25872.0,25871.0,0.52913745]
[1693579028037,0.17981947,25872.0,25871.0,0.47444838]
[1693579028250,0.17981947,25872.0,25871.0,0.52913745]
[1693579028545,0.17981947,25872.0,25871.0,0.47444838]
[1693579028852,0.18368947,25872.0,25871.0,0.47444838]
[1693579029750,0.17981947,25872.0,25871.0,0.4179]
[1693579030152,0.21673947,25872.0,25871.0,0.4209]
[1693579030538,0.27442692,25872.0,25871.0,0.4209]
[1693579031250,0.27442692,25872.0,25871.0,0.4239]
[1693579032648,0.27055692,25872.0,25871.0,0.4239]
[1693579032951,0.17981947,25872.0,25871.0,0.4239]
[1693579033254,0.27055692,25872.0,25871.0,0.4239]
[1693579033554,0.21673947,25872.0,25871.0,0.4239]
[1693579033960,0.27055692,25872.0,25871.0,0.4239]
[1693579034157,0.22060947,25872.0,25871.0,0.47858907]
[1693579034455,0.22060947,25872.0,25871.0,0.4239]
[1693579034954,0.27442692,25872.0,25871.0,0.4239]
[1693579035254,0.22060947,25872.0,25871.0,0.4239]
[1693579035449,0.27442692,25872.0,25871.0,0.4239]
[1693579036844,0.22060947,25872.0,25871.0,0.4239]
[1693579037159,0.63463947,25872.0,25871.0,0.4239]
[1693579037544,0.68845692,25872.0,25871.0,0.4239]
[1693579039655,0.60158947,25872.0,25871.0,0.4239]
[1693579039846,0.59771947,25872.0,25871.0,0.4239]
[1693579040245,0.68845692,25872.0,25871.0,0.4239]
[1693579041050,0.68845692,25872.0,25871.0,0.006]
[1693579042452,0.61463947,25872.0,25871.0,0.006]
[1693579042757,0.66845692,25872.0,25871.0,0.006]
[1693579046757,0.68845692,25872.0,25871.0,0.006]
[1693579047650,0.69232692,25872.0,25871.0,0.006]
[1693579048154,0.72258362,25872.0,25871.0,0.006]
[1693579050057,0.00387,25868.0,25865.0,0.1589]
[1693579050249,0.42177,25868.0,25867.0,0.39879053]
[1693579050657,0.45869,25868.0,25867.0,0.39879053]
[1693579050949,0.53250745,25868.0,25867.0,0.39879053]
[1693579051553,0.53250745,25868.0,25864.0,0.4179]
[1693579051758,0.4179,25865.0,25864.0,0.4179]
[1693579052369,0.50863745,25865.0,25864.0,0.4179]
[1693579052761,0.45482,25865.0,25864.0,0.4189]
[1693579053265,0.45682,25865.0,25864.0,0.4189]
[1693579053763,0.45482,25865.0,25864.0,0.4189]
[1693579053959,0.51063745,25865.0,25864.0,0.4189]
[1693579055064,0.4199,25865.0,25864.0,0.53013745]
[1693579055258,0.4199,25865.0,25864.0,0.47544838]
[1693579055458,0.4199,25865.0,25864.0,0.47644838]
[1693579055653,0.005,25865.0,25864.0,0.55313745]
[1693579056159,0.005,25865.0,25864.0,1.13590249]
[1693579058373,0.19218987,25870.0,25867.0,0.4179]
[1693579058671,0.19218987,25870.0,25869.0,0.4179]
[1693579058969,0.19218987,25870.0,25869.0,0.47258907]
[1693579059269,0.05381745,25871.0,25869.0,0.4179]
[1693579059464,0.22931807,25870.0,25868.0,0.05654838]
[1693579059668,0.19239807,25869.0,25868.0,0.02]
[1693579059864,0.22931807,25869.0,25868.0,0.4379]
[1693579060073,0.19239807,25869.0,25868.0,0.49258907]
[1693579060463,0.19239807,25869.0,25868.0,0.54913745]
[1693579060973,0.19239807,25869.0,25868.0,0.49444838]
[1693579061471,0.19239807,25869.0,25868.0,0.50044838]
[1693579061670,0.19239807,25869.0,25868.0,0.55513745]
[1693579062371,0.61280654,25872.0,25868.0,0.55513745]
[1693579062571,0.61280654,25872.0,25871.0,0.4179]
[1693579062765,0.64972654,25872.0,25871.0,0.4179]
[1693579063269,0.70354399,25872.0,25871.0,0.4179]
[1693579064269,0.70354399,25872.0,25871.0,0.4209]
[1693579064467,0.42215827,25872.0,25871.0,0.47744838]
[1693579064674,0.26195827,25872.0,25871.0,0.47744838]
[1693579064971,0.23170157,25872.0,25871.0,0.53213745]
[1693579065365,0.23170157,25872.0,25871.0,0.53513745]
[1693579066674,0.00057984,25872.0,25871.0,0.55513745]
[1693579066870,0.00057984,25872.0,25871.0,0.55213745]
[1693579067072,0.00057984,25872.0,25871.0,0.55513745]
[1693579067469,0.03749984,25872.0,25871.0,0.53513745]
[1693579067675,0.00057984,25872.0,25871.0,0.53513745]
[1693579068068,0.00057984,25872.0,25871.0,0.48044838]
[1693579068262,0.00057984,25872.0,25871.0,0.4239]
[1693579068575,0.00057984,25872.0,25871.0,0.48044838]
[1693579069068,0.00057984,25872.0,25871.0,0.4239]
[1693579069273,0.00057984,25872.0,25871.0,0.48044838]
[1693579069869,0.05826729,25872.0,25871.0,0.4239]
[1693579070178,0.47616729,25872.0,25871.0,0.4239]
[1693579070365,0.51308729,25872.0,25871.0,0.4239]
[1693579071875,0.74033902,25872.0,25871.0,0.4239]
[1693579072175,0.51308729,25872.0,25871.0,0.4239]
[1693579072573,0.74033902,25872.0,25871.0,0.4239]
[1693579073567,0.74033902,25872.0,25871.0,0.006]
[1693579074674,0.58906805,25872.0,25871.0,0.006]
[1693579076168,0.53308729,25872.0,25871.0,0.006]
[1693579076470,0.58906682,25872.0,25871.0,0.006]
[1693579078269,0.85719703,25872.0,25871.0,0.006]
[1693579080178,0.58906682,25872.0,25871.0,0.006]
[1693579080871,0.6204193,25872.0,25871.0,0.006]
[1693579082576,0.56443977,25872.0,25871.0,0.006]
[1693579082770,0.79570082,25872.0,25871.0,0.006]
[1693579082993,0.62042148,25872.0,25871.0,0.006]
[1693579083974,0.56443977,25872.0,25871.0,0.006]
[1693579084478,0.54443977,25872.0,25871.0,0.006]
[1693579084778,0.56443977,25872.0,25871.0,0.006]
[1693579085374,0.49062232,25872.0,25871.0,0.006]
[1693579085574,0.45370232,25872.0,25871.0,0.22354838]
[1693579085769,0.45370232,25872.0,25871.0,0.167]
[1693579085979,0.42234984,25872.0,25871.0,0.24354838]
[1693579086486,0.00057984,25872.0,25871.0,0.71613745]
[1693579088185,0.41847984,25872.0,25871.0,0.5849]
[1693579088788,0.45539984,25872.0,25871.0,0.5849]
[1693579090485,0.45539984,25872.0,25871.0,0.63958907]
[1693579090786,0.45539984,25872.0,25871.0,0.5849]
[1693579091184,0.45539984,25872.0,25871.0,0.63958907]
[1693579091391,0.45539984,25872.0,25871.0,0.5849]
[1693579092778,0.41847984,25872.0,25871.0,0.69613745]
[1693579092983,0.50921729,25872.0,25871.0,0.5849]
[1693579093893,0.74047622,25872.0,25871.0,0.5849]
[1693579094191,0.51308729,25872.0,25871.0,0.5849]
[1693579095791,0.45926984,25872.0,25871.0,0.5849]
[1693579096086,0.41847984,25872.0,25871.0,0.5849]
[1693579097295,0.45539984,25872.0,25871.0,0.5849]
[1693579098602,0.41847984,25872.0,25871.0,0.5849]
[1693579099092,0.45539984,25872.0,25871.0,0.5849]
[1693579099791,0.41847984,25872.0,25871.0,0.5849]
[1693579100184,0.41847984,25872.0,25871.0,0.71613745]
[1693579103794,0.00057984,25872.0,25871.0,0.71613745]
[1693579104994,0.00057984,25872.0,25871.0,0.71313745]
[1693579105183,0.00057984,25872.0,25871.0,0.71613745]
[1693579105489,0.00057984,25872.0,25871.0,1.29276608]
[1693579105490,0.19324237,25872.0,25871.0,1.29276608]
[1693579105793,0.00057984,25872.0,25871.0,1.29276608]
[1693579106592,0.19266253,25873.0,25872.0,0.11123745]
[1693579106791,0.19266253,25873.0,25872.0,0.49444838]
[1693579106990,0.26172677,25878.0,25875.0,0.4179]
[1693579107190,0.26172677,25878.0,25877.0,0.4179]
[1693579107383,0.23125893,25878.0,25877.0,0.4179]
[1693579107698,0.23125893,25879.0,25877.0,0.52913745]
[1693579107897,0.23125893,25879.0,25878.0,0.4179]
[1693579108097,0.23125893,25879.0,25878.0,0.52913745]
[1693579108795,0.26204233,25879.0,25878.0,0.47444838]
[1693579109199,0.29896233,25879.0,25878.0,0.4179]
[1693579109425,0.0677034,25879.0,25878.0,0.4179]
[1693579109797,0.0307834,25879.0,25878.0,0.4179]
[1693579109993,0.23512893,25880.0,25878.0,0.47258907]
[1693579110192,0.28894638,25880.0,25879.0,0.4179]
[1693579110385,0.23512893,25880.0,25879.0,0.52913745]
[1693579110693,0.23512893,25880.0,25879.0,0.47444838]
[1693579110885,0.23512893,25880.0,25879.0,0.52913745]